[Event "NJSK 2018 Jeugd A"]
[Site "Assen, Netherlands"]
[Date "2018.04.30"]
[Round "2.2"]
[White "Warmerdam, Max"]
[Black "Nguyen, Kevin"]
[Result "1-0"]
[TimeControl "40/90m+30m+30sec/move"]
[WhiteElo "2378"]
[BlackElo "2122"]

1. e4 {[%clk 01:30:58]} {[%emt 00:00:02]} c5 {[%clk 01:30:52]} {[%emt
00:00:08]} 2. Nf3 {[%clk 01:31:23]} {[%emt 00:00:05]} g6 {[%clk 01:31:19]}
{[%emt 00:00:04]} 3. d4 {[%clk 01:31:42]} {[%emt 00:00:10]} cxd4 {[%clk
01:31:45]} {[%emt 00:00:04]} 4. Nxd4 {[%clk 01:32:07]} {[%emt 00:00:05]} Nc6
{[%clk 01:32:10]} {[%emt 00:00:05]} 5. c4 {[%clk 01:32:32]} {[%emt 00:00:05]}
Nf6 {[%clk 01:32:31]} {[%emt 00:00:09]} 6. Nc3 {[%clk 01:32:56]} {[%emt
00:00:05]} d6 {[%clk 01:32:59]} {[%emt 00:00:03]} 7. Be2 {[%clk 01:33:20]}
{[%emt 00:00:06]} Nxd4 {[%clk 01:33:17]} {[%emt 00:00:13]} 8. Qxd4 {[%clk
01:33:44]} {[%emt 00:00:06]} Bg7 {[%clk 01:33:44]} {[%emt 00:00:03]} 9. Be3
{[%clk 01:34:05]} {[%emt 00:00:08]} O-O {[%clk 01:34:07]} {[%emt 00:00:06]} 10.
Qd2 {[%clk 01:34:32]} {[%emt 00:00:04]} Ng4 {[%clk 01:34:32]} {[%emt 00:00:04]}
11. Bxg4 {[%clk 01:28:12]} {[%emt 00:06:51]} Bxg4 {[%clk 01:34:58]} {[%emt
00:00:04]} 12. Bd4 {[%clk 01:11:33]} {[%emt 00:17:10]} Be6 {[%clk 01:35:14]}
{[%emt 00:00:13]} 13. Bxg7 {[%clk 01:11:18]} {[%emt 00:00:45]} Kxg7 {[%clk
01:35:41]} {[%emt 00:00:03]} 14. b3 {[%clk 01:10:57]} {[%emt 00:00:51]} Qa5
{[%clk 01:34:38]} {[%emt 00:01:34]} 15. O-O {[%clk 01:05:34]} {[%emt 00:05:52]}
Rac8 {[%clk 01:33:56]} {[%emt 00:01:12]} 16. Rae1 {[%clk 00:39:16]} {[%emt
00:26:48]} a6 {[%clk 01:24:58]} {[%emt 00:09:28]} 17. Qd4+ {[%clk 00:37:20]}
{[%emt 00:02:25]} f6 {[%clk 01:22:21]} {[%emt 00:03:07]} 18. Nd5 {[%clk
00:36:08]} {[%emt 00:01:42]} Bxd5 {[%clk 01:22:08]} {[%emt 00:00:44]} 19. exd5
{[%clk 00:35:45]} {[%emt 00:00:53]} Rfe8 {[%clk 01:17:03]} {[%emt 00:05:36]} 20.
Re2 {[%clk 00:29:50]} {[%emt 00:06:24]} Qc5 {[%clk 01:17:05]} {[%emt 00:00:28]}
21. Qd2 {[%clk 00:27:28]} {[%emt 00:02:52]} b5 {[%clk 01:16:47]} {[%emt
00:00:48]} 22. Rfe1 {[%clk 00:27:02]} {[%emt 00:00:56]} Qa7 {[%clk 01:11:25]}
{[%emt 00:05:52]} 23. cxb5 {[%clk 00:27:15]} {[%emt 00:00:17]} axb5 {[%clk
01:11:11]} {[%emt 00:00:44]} 24. Re6 {[%clk 00:25:01]} {[%emt 00:02:43]} Qd7
{[%clk 01:07:33]} {[%emt 00:04:08]} 25. h4 {[%clk 00:24:21]} {[%emt 00:01:10]}
Rc5 {[%clk 00:59:49]} {[%emt 00:08:14]} 26. R1e4 {[%clk 00:17:06]} {[%emt
00:07:45]} Qc7 {[%clk 00:50:42]} {[%emt 00:09:37]} 27. Qe3 {[%clk 00:16:23]}
{[%emt 00:01:13]} Kf7 {[%clk 00:49:03]} {[%emt 00:02:10]} 28. Qh6 {[%clk
00:16:37]} {[%emt 00:00:15]} Kg8 {[%clk 00:40:57]} {[%emt 00:08:36]} 29. Rxf6
{[%clk 00:16:30]} {[%emt 00:00:38]} Qd7 {[%clk 00:40:43]} {[%emt 00:00:44]} 30.
Rxg6+ {[%clk 00:13:28]} {[%emt 00:03:31]} hxg6 {[%clk 00:41:09]} {[%emt
00:00:04]} 31. Qxg6+ {[%clk 00:13:52]} {[%emt 00:00:06]} Kh8 {[%clk 00:41:36]}
{[%emt 00:00:04]} 32. Qh6 {[%clk 00:12:34]} {[%emt 00:01:48]} Kg8 {[%clk
00:42:01]} {[%emt 00:00:04]} 33. Qg6+ {[%clk 00:12:59]} {[%emt 00:00:05]} Kh8
{[%clk 00:42:27]} {[%emt 00:00:04]} 34. Qh5 {[%clk 00:13:25]} {[%emt 00:00:04]}
Kg8 {[%clk 00:39:30]} {[%emt 00:03:28]} 35. Re6 {[%clk 00:13:27]} {[%emt
00:00:28]} 1-0

[Event "NJSK 2018 Jeugd A"]
[Site "Assen, Netherlands"]
[Date "2018.04.30"]
[Round "2.3"]
[White "Kokje, Joris"]
[Black "Van Dael, Siem"]
[Result "1-0"]
[TimeControl "40/90m+30m+30sec/move"]
[WhiteElo "2265"]
[BlackElo "2268"]

1. d4 {[%clk 01:30:58]} {[%emt 00:00:02]} Nf6 {[%clk 01:30:51]} {[%emt
00:00:10]} 2. c4 {[%clk 01:31:21]} {[%emt 00:00:06]} g6 {[%clk 01:31:18]}
{[%emt 00:00:03]} 3. f3 {[%clk 01:31:43]} {[%emt 00:00:07]} Bg7 {[%clk
01:31:45]} {[%emt 00:00:04]} 4. e4 {[%clk 01:32:08]} {[%emt 00:00:05]} d6
{[%clk 01:32:13]} {[%emt 00:00:02]} 5. Nc3 {[%clk 01:32:32]} {[%emt 00:00:07]}
O-O {[%clk 01:32:35]} {[%emt 00:00:08]} 6. Nge2 {[%clk 01:32:57]} {[%emt
00:00:04]} c5 {[%clk 01:33:01]} {[%emt 00:00:04]} 7. d5 {[%clk 01:33:22]}
{[%emt 00:00:06]} e6 {[%clk 01:33:23]} {[%emt 00:00:08]} 8. Ng3 {[%clk
01:33:45]} {[%emt 00:00:06]} exd5 {[%clk 01:33:50]} {[%emt 00:00:04]} 9. cxd5
{[%clk 01:34:10]} {[%emt 00:00:05]} h5 {[%clk 01:34:15]} {[%emt 00:00:04]} 10.
Bg5 {[%clk 01:34:23]} {[%emt 00:00:18]} Qb6 {[%clk 01:34:40]} {[%emt 00:00:05]}
11. Qd2 {[%clk 01:34:01]} {[%emt 00:00:52]} Nh7 {[%clk 01:34:44]} {[%emt
00:00:26]} 12. Bh4 {[%clk 01:34:12]} {[%emt 00:00:18]} Nd7 {[%clk 01:34:44]}
{[%emt 00:00:30]} 13. Be2 {[%clk 01:23:58]} {[%emt 00:10:44]} Ne5 {[%clk
01:32:17]} {[%emt 00:02:57]} 14. f4 {[%clk 01:13:26]} {[%emt 00:11:03]} Ng4
{[%clk 01:30:05]} {[%emt 00:02:42]} 15. h3 {[%clk 01:11:43]} {[%emt 00:02:12]}
Ngf6 {[%clk 01:24:06]} {[%emt 00:06:29]} 16. O-O {[%clk 01:09:36]} {[%emt
00:02:38]} Re8 {[%clk 01:22:37]} {[%emt 00:01:58]} 17. Rae1 {[%clk 01:04:11]}
{[%emt 00:05:55]} a6 {[%clk 00:56:15]} {[%emt 00:26:52]} 18. Kh1 {[%clk
00:59:47]} {[%emt 00:04:54]} Qd8 {[%clk 00:55:07]} {[%emt 00:01:38]} 19. Bf3
{[%clk 00:51:39]} {[%emt 00:08:38]} Bd7 {[%clk 00:48:04]} {[%emt 00:07:33]} 20.
e5 {[%clk 00:50:04]} {[%emt 00:02:05]} Ne4 {[%clk 00:42:00]} {[%emt 00:06:34]}
21. Ngxe4 {[%clk 00:49:43]} {[%emt 00:00:51]} Qxh4 {[%clk 00:42:22]} {[%emt
00:00:08]} 22. Nxd6 {[%clk 00:49:54]} {[%emt 00:00:19]} Re7 {[%clk 00:41:17]}
{[%emt 00:01:35]} 23. e6 {[%clk 00:40:26]} {[%emt 00:09:59]} fxe6 {[%clk
00:36:45]} {[%emt 00:05:01]} 24. dxe6 {[%clk 00:40:27]} {[%emt 00:00:29]} Bc6
{[%clk 00:37:03]} {[%emt 00:00:11]} 25. Bxc6 {[%clk 00:33:50]} {[%emt
00:07:07]} bxc6 {[%clk 00:37:27]} {[%emt 00:00:06]} 26. Qc2 {[%clk 00:26:58]}
{[%emt 00:07:22]} Nf8 {[%clk 00:34:52]} {[%emt 00:03:05]} 27. f5 {[%clk
00:25:53]} {[%emt 00:01:35]} Rd8 {[%clk 00:30:04]} {[%emt 00:05:18]} 28. Nce4
{[%clk 00:25:22]} {[%emt 00:01:01]} 1-0

[Event "NJSK 2018 Jeugd A"]
[Site "Assen, Netherlands"]
[Date "2018.04.30"]
[Round "2.4"]
[White "Jongste, David"]
[Black "Schoppen, Casper"]
[Result "1/2-1/2"]
[TimeControl "40/90m+30m+30sec/move"]
[WhiteElo "2092"]
[BlackElo "2396"]

1. e4 {[%clk 01:30:53]} {[%emt 00:00:07]} e5 {[%clk 01:30:41]} {[%emt
00:00:19]} 2. Nf3 {[%clk 01:31:18]} {[%emt 00:00:06]} Nc6 {[%clk 01:31:07]}
{[%emt 00:00:04]} 3. Bb5 {[%clk 01:31:39]} {[%emt 00:00:08]} a6 {[%clk
01:31:11]} {[%emt 00:00:26]} 4. Ba4 {[%clk 01:32:03]} {[%emt 00:00:07]} Nf6
{[%clk 01:31:35]} {[%emt 00:00:05]} 5. O-O {[%clk 01:32:27]} {[%emt 00:00:07]}
Be7 {[%clk 01:32:00]} {[%emt 00:00:05]} 6. Re1 {[%clk 01:32:52]} {[%emt
00:00:05]} b5 {[%clk 01:32:25]} {[%emt 00:00:05]} 7. Bb3 {[%clk 01:33:17]}
{[%emt 00:00:04]} d6 {[%clk 01:32:49]} {[%emt 00:00:06]} 8. c3 {[%clk
01:33:43]} {[%emt 00:00:05]} O-O {[%clk 01:33:13]} {[%emt 00:00:06]} 9. h3
{[%clk 01:34:09]} {[%emt 00:00:04]} Bb7 {[%clk 01:33:06]} {[%emt 00:00:37]} 10.
d4 {[%clk 01:33:56]} {[%emt 00:00:43]} Re8 {[%clk 01:33:23]} {[%emt 00:00:12]}
11. Ng5 {[%clk 01:33:24]} {[%emt 00:01:03]} Rf8 {[%clk 01:33:46]} {[%emt
00:00:06]} 12. Nf3 {[%clk 01:33:49]} {[%emt 00:00:06]} Nd7 {[%clk 01:32:59]}
{[%emt 00:01:16]} 13. Nbd2 {[%clk 01:33:19]} {[%emt 00:01:00]} Bf6 {[%clk
01:30:11]} {[%emt 00:03:18]} 14. Nf1 {[%clk 01:33:34]} {[%emt 00:00:14]} Na5
{[%clk 01:29:23]} {[%emt 00:01:19]} 15. Bc2 {[%clk 01:33:34]} {[%emt 00:00:31]}
Re8 {[%clk 01:24:32]} {[%emt 00:05:21]} 16. Ng3 {[%clk 01:32:49]} {[%emt
00:01:14]} g6 {[%clk 01:23:41]} {[%emt 00:01:21]} 17. Rb1 {[%clk 01:21:56]}
{[%emt 00:11:24]} exd4 {[%clk 01:17:28]} {[%emt 00:06:42]} 18. cxd4 {[%clk
01:20:07]} {[%emt 00:02:19]} c5 {[%clk 01:16:16]} {[%emt 00:01:42]} 19. d5
{[%clk 01:13:27]} {[%emt 00:07:10]} Nc4 {[%clk 01:10:51]} {[%emt 00:05:55]} 20.
b3 {[%clk 01:10:19]} {[%emt 00:03:38]} Nce5 {[%clk 01:10:46]} {[%emt 00:00:35]}
21. Nh2 {[%clk 01:05:15]} {[%emt 00:05:34]} Nb6 {[%clk 00:42:38]} {[%emt
00:28:38]} 22. f4 {[%clk 00:55:30]} {[%emt 00:10:15]} Ned7 {[%clk 00:41:09]}
{[%emt 00:02:00]} 23. Nf3 {[%clk 00:50:40]} {[%emt 00:05:19]} Bg7 {[%clk
00:40:32]} {[%emt 00:01:07]} 24. a4 {[%clk 00:41:00]} {[%emt 00:10:10]} b4
{[%clk 00:36:54]} {[%emt 00:04:07]} 25. Bd3 {[%clk 00:30:00]} {[%emt 00:11:31]}
Rc8 {[%clk 00:30:24]} {[%emt 00:07:01]} 26. Kh2 {[%clk 00:21:16]} {[%emt
00:09:13]} a5 {[%clk 00:26:36]} {[%emt 00:04:18]} 27. Bb5 {[%clk 00:15:59]}
{[%emt 00:05:47]} Rf8 {[%clk 00:25:37]} {[%emt 00:01:29]} 28. Qd3 {[%clk
00:13:26]} {[%emt 00:03:03]} c4 {[%clk 00:22:20]} {[%emt 00:03:47]} 29. bxc4
{[%clk 00:12:09]} {[%emt 00:01:46]} Nc5 {[%clk 00:22:15]} {[%emt 00:00:36]} 30.
Qd1 {[%clk 00:11:42]} {[%emt 00:00:57]} Ba6 {[%clk 00:21:41]} {[%emt 00:01:04]}
31. e5 {[%clk 00:06:37]} {[%emt 00:05:36]} Bxb5 {[%clk 00:21:14]} {[%emt
00:00:56]} 32. axb5 {[%clk 00:06:31]} {[%emt 00:00:36]} Nxc4 {[%clk 00:17:53]}
{[%emt 00:03:52]} 33. e6 {[%clk 00:05:26]} {[%emt 00:01:35]} Qb6 {[%clk
00:13:03]} {[%emt 00:05:19]} 34. f5 {[%clk 00:02:15]} {[%emt 00:03:41]} fxe6
{[%clk 00:11:10]} {[%emt 00:02:24]} 35. dxe6 {[%clk 00:01:02]} {[%emt
00:01:42]} Qb7 {[%clk 00:10:51]} {[%emt 00:00:49]} 36. e7 {[%clk 00:00:41]}
{[%emt 00:00:51]} Rfe8 {[%clk 00:11:12]} {[%emt 00:00:10]} 37. Bg5 {[%clk
00:00:48]} {[%emt 00:00:23]} Nd7 {[%clk 00:08:18]} {[%emt 00:03:23]} 38. Re6
{[%clk 00:00:36]} {[%emt 00:00:42]} Nde5 {[%clk 00:07:44]} {[%emt 00:01:04]} 39.
Nxe5 {[%clk 00:00:38]} {[%emt 00:00:28]} Nxe5 {[%clk 00:08:02]} {[%emt
00:00:12]} 40. fxg6 {[%clk 00:00:33]} {[%emt 00:00:35]} hxg6 {[%clk 00:07:20]}
{[%emt 00:01:12]} 41. Rxd6 {[%clk 00:20:16]} {[%emt 00:10:46]} Qxb5 {[%clk
00:29:35]} {[%emt 00:08:16]} 42. Rd5 {[%clk 00:15:50]} {[%emt 00:04:56]} Qb8
{[%clk 00:12:37]} {[%emt 00:17:28]} 43. Rxa5 {[%clk 00:11:37]} {[%emt
00:04:42]} Kh7 {[%clk 00:12:41]} {[%emt 00:00:27]} 44. Qd5 {[%clk 00:09:05]}
{[%emt 00:03:01]} Rc2 {[%clk 00:10:35]} {[%emt 00:02:37]} 45. Qe4 {[%clk
00:04:11]} {[%emt 00:05:24]} Rc4 {[%clk 00:10:11]} {[%emt 00:00:54]} 46. Qe2
{[%clk 00:03:20]} {[%emt 00:01:21]} Qc7 {[%clk 00:07:07]} {[%emt 00:03:35]} 47.
Rd5 {[%clk 00:02:24]} {[%emt 00:01:26]} Rc2 {[%clk 00:04:35]} {[%emt 00:03:01]}
48. Rd2 {[%clk 00:01:57]} {[%emt 00:00:57]} Rc3 {[%clk 00:04:02]} {[%emt
00:01:03]} 49. Bh4 {[%clk 00:00:56]} {[%emt 00:01:31]} Rc4 {[%clk 00:02:51]}
{[%emt 00:01:41]} 50. Bg5 {[%clk 00:00:45]} {[%emt 00:00:40]} Rc3 {[%clk
00:02:57]} {[%emt 00:00:25]} 51. Bh4 {[%clk 00:00:44]} {[%emt 00:00:30]} Rc4
{[%clk 00:01:15]} {[%emt 00:02:12]} 52. Bg5 {[%clk 00:00:50]} {[%emt 00:00:25]}
Rc3 {[%clk 00:01:19]} {[%emt 00:00:26]} 1/2-1/2

[Event "NJSK 2018 Jeugd A"]
[Site "Assen, Netherlands"]
[Date "2018.04.30"]
[Round "2.5"]
[White "Pols, Wiggert"]
[Black "Kanbier, Max"]
[Result "1/2-1/2"]
[TimeControl "40/90m+30m+30sec/move"]
[WhiteElo "2068"]
[BlackElo "1857"]

1. e4 {[%clk 01:30:58]} {[%emt 00:00:01]} c6 {[%clk 01:30:56]} {[%emt
00:00:05]} 2. Nc3 {[%clk 01:31:18]} {[%emt 00:00:10]} d5 {[%clk 01:31:22]}
{[%emt 00:00:04]} 3. Nf3 {[%clk 01:31:42]} {[%emt 00:00:06]} dxe4 {[%clk
01:31:49]} {[%emt 00:00:03]} 4. Nxe4 {[%clk 01:32:05]} {[%emt 00:00:07]} Nf6
{[%clk 01:32:16]} {[%emt 00:00:03]} 5. Nxf6+ {[%clk 01:32:25]} {[%emt
00:00:10]} exf6 {[%clk 01:32:42]} {[%emt 00:00:04]} 6. d4 {[%clk 01:32:38]}
{[%emt 00:00:18]} Bd6 {[%clk 01:33:06]} {[%emt 00:00:05]} 7. Be2 {[%clk
01:32:04]} {[%emt 00:01:03]} O-O {[%clk 01:33:28]} {[%emt 00:00:09]} 8. O-O
{[%clk 01:32:07]} {[%emt 00:00:27]} Nd7 {[%clk 01:33:26]} {[%emt 00:00:32]} 9.
c4 {[%clk 01:31:28]} {[%emt 00:01:09]} Re8 {[%clk 01:33:45]} {[%emt 00:00:11]}
10. Qc2 {[%clk 01:31:03]} {[%emt 00:00:55]} Nf8 {[%clk 01:34:07]} {[%emt
00:00:08]} 11. Rd1 {[%clk 01:29:31]} {[%emt 00:02:02]} Qc7 {[%clk 01:27:44]}
{[%emt 00:06:53]} 12. c5 {[%clk 01:19:14]} {[%emt 00:10:48]} Be7 {[%clk
01:26:28]} {[%emt 00:01:45]} 13. b4 {[%clk 01:15:14]} {[%emt 00:04:30]} Be6
{[%clk 01:26:11]} {[%emt 00:00:47]} 14. a4 {[%clk 01:12:30]} {[%emt 00:03:14]}
Ng6 {[%clk 01:22:59]} {[%emt 00:03:42]} 15. b5 {[%clk 01:05:41]} {[%emt
00:07:18]} f5 {[%clk 01:20:12]} {[%emt 00:03:18]} 16. a5 {[%clk 01:03:50]}
{[%emt 00:02:21]} Bd7 {[%clk 01:14:11]} {[%emt 00:06:31]} 17. Bd3 {[%clk
00:57:44]} {[%emt 00:06:35]} cxb5 {[%clk 01:13:30]} {[%emt 00:01:12]} 18. Bxf5
{[%clk 00:56:55]} {[%emt 00:01:20]} Rac8 {[%clk 01:12:07]} {[%emt 00:01:52]} 19.
Bxg6 {[%clk 00:55:24]} {[%emt 00:02:01]} hxg6 {[%clk 01:12:23]} {[%emt
00:00:14]} 20. Ne5 {[%clk 00:54:52]} {[%emt 00:01:02]} Bf5 {[%clk 01:06:25]}
{[%emt 00:06:28]} 21. Qb3 {[%clk 00:50:13]} {[%emt 00:05:09]} Bxc5 {[%clk
01:05:44]} {[%emt 00:01:11]} 22. Bf4 {[%clk 00:48:39]} {[%emt 00:02:03]} g5
{[%clk 00:49:05]} {[%emt 00:17:09]} 23. Bg3 {[%clk 00:39:15]} {[%emt 00:09:54]}
Bd6 {[%clk 00:44:54]} {[%emt 00:04:42]} 24. Qxb5 {[%clk 00:29:17]} {[%emt
00:10:28]} a6 {[%clk 00:41:08]} {[%emt 00:04:16]} 25. Qb2 {[%clk 00:25:06]}
{[%emt 00:04:41]} f6 {[%clk 00:36:44]} {[%emt 00:04:54]} 26. Nd3 {[%clk
00:24:22]} {[%emt 00:01:14]} Bxg3 {[%clk 00:36:36]} {[%emt 00:00:38]} 27. hxg3
{[%clk 00:24:42]} {[%emt 00:00:10]} Bxd3 {[%clk 00:36:42]} {[%emt 00:00:24]} 28.
Rxd3 {[%clk 00:23:19]} {[%emt 00:01:53]} Qc2 {[%clk 00:32:59]} {[%emt
00:04:14]} 29. Qxc2 {[%clk 00:23:10]} {[%emt 00:00:38]} Rxc2 {[%clk 00:33:23]}
{[%emt 00:00:05]} 30. d5 {[%clk 00:18:13]} {[%emt 00:05:28]} Ree2 {[%clk
00:33:46]} {[%emt 00:00:07]} 31. d6 {[%clk 00:16:35]} {[%emt 00:02:08]} Red2
{[%clk 00:33:47]} {[%emt 00:00:29]} 32. Rd1 {[%clk 00:12:47]} {[%emt 00:04:18]}
Rxf2 {[%clk 00:34:06]} {[%emt 00:00:11]} 33. d7 {[%clk 00:12:17]} {[%emt
00:01:00]} Rxg2+ {[%clk 00:34:29]} {[%emt 00:00:07]} 34. Kh1 {[%clk 00:12:20]}
{[%emt 00:00:27]} 1/2-1/2

[Event "NJSK 2018 Jeugd A"]
[Site "Assen, Netherlands"]
[Date "2018.04.30"]
[Round "2.6"]
[White "De Boer, Bas"]
[Black "Mesman, Edwyn"]
[Result "0-1"]
[TimeControl "40/90m+30m+30sec/move"]
[WhiteElo "2159"]
[BlackElo "2082"]

1. Nf3 {[%clk 01:30:58]} {[%emt 00:00:02]} Nf6 {[%clk 01:30:48]} {[%emt
00:00:12]} 2. c4 {[%clk 01:31:21]} {[%emt 00:00:06]} e6 {[%clk 01:31:13]}
{[%emt 00:00:06]} 3. Nc3 {[%clk 01:31:45]} {[%emt 00:00:05]} d5 {[%clk
01:31:23]} {[%emt 00:00:21]} 4. e3 {[%clk 01:31:56]} {[%emt 00:00:18]} Be7
{[%clk 01:30:01]} {[%emt 00:01:53]} 5. b3 {[%clk 01:31:04]} {[%emt 00:01:20]}
O-O {[%clk 01:29:21]} {[%emt 00:01:12]} 6. Bb2 {[%clk 01:28:09]} {[%emt
00:03:24]} b6 {[%clk 01:29:05]} {[%emt 00:00:46]} 7. cxd5 {[%clk 01:23:31]}
{[%emt 00:05:08]} Nxd5 {[%clk 01:25:13]} {[%emt 00:04:23]} 8. Nxd5 {[%clk
01:21:15]} {[%emt 00:02:45]} Qxd5 {[%clk 01:22:09]} {[%emt 00:03:34]} 9. Bc4
{[%clk 01:19:50]} {[%emt 00:01:54]} Qd8 {[%clk 01:13:35]} {[%emt 00:09:06]} 10.
Ne5 {[%clk 01:11:25]} {[%emt 00:08:54]} Bb7 {[%clk 00:57:03]} {[%emt 00:17:03]}
11. Qg4 {[%clk 01:02:57]} {[%emt 00:08:56]} Bf6 {[%clk 00:50:58]} {[%emt
00:06:36]} 12. d4 {[%clk 00:53:18]} {[%emt 00:10:08]} c5 {[%clk 00:21:30]}
{[%emt 00:30:00]} 13. O-O {[%clk 00:47:41]} {[%emt 00:06:05]} cxd4 {[%clk
00:17:01]} {[%emt 00:04:59]} 14. exd4 {[%clk 00:42:29]} {[%emt 00:05:43]} a6
{[%clk 00:16:43]} {[%emt 00:00:49]} 15. Rfe1 {[%clk 00:29:35]} {[%emt
00:13:22]} g6 {[%clk 00:12:49]} {[%emt 00:04:25]} 16. Re3 {[%clk 00:23:19]}
{[%emt 00:06:44]} b5 {[%clk 00:10:37]} {[%emt 00:02:45]} 17. Bd3 {[%clk
00:23:19]} {[%emt 00:00:29]} Nd7 {[%clk 00:09:29]} {[%emt 00:01:38]} 18. Rd1
{[%clk 00:16:57]} {[%emt 00:06:50]} Bg7 {[%clk 00:08:41]} {[%emt 00:01:20]} 19.
Rh3 {[%clk 00:13:31]} {[%emt 00:03:52]} Nf6 {[%clk 00:07:35]} {[%emt 00:01:40]}
20. Qe2 {[%clk 00:10:21]} {[%emt 00:03:40]} Qd5 {[%clk 00:06:16]} {[%emt
00:01:50]} 21. f3 {[%clk 00:09:59]} {[%emt 00:00:50]} Rac8 {[%clk 00:04:50]}
{[%emt 00:01:58]} 22. g4 {[%clk 00:07:54]} {[%emt 00:02:34]} Qd6 {[%clk
00:03:50]} {[%emt 00:01:31]} 23. Bb1 {[%clk 00:06:55]} {[%emt 00:01:28]} Nd5
{[%clk 00:03:39]} {[%emt 00:00:42]} 24. Qd2 {[%clk 00:06:15]} {[%emt 00:01:09]}
b4 {[%clk 00:03:04]} {[%emt 00:01:06]} 25. Be4 {[%clk 00:05:40]} {[%emt
00:01:04]} Nc3 {[%clk 00:01:48]} {[%emt 00:01:47]} 26. Nc4 {[%clk 00:03:28]}
{[%emt 00:02:42]} Rxc4 {[%clk 00:00:49]} {[%emt 00:01:29]} 27. bxc4 {[%clk
00:03:10]} {[%emt 00:00:47]} Nxd1 {[%clk 00:00:46]} {[%emt 00:00:33]} 28. Qxd1
{[%clk 00:03:18]} {[%emt 00:00:21]} Bxe4 {[%clk 00:00:54]} {[%emt 00:00:23]} 29.
fxe4 {[%clk 00:03:39]} {[%emt 00:00:08]} Rd8 {[%clk 00:01:16]} {[%emt
00:00:09]} 30. Rd3 {[%clk 00:03:04]} {[%emt 00:01:05]} Qc6 {[%clk 00:01:34]}
{[%emt 00:00:13]} 31. d5 {[%clk 00:02:15]} {[%emt 00:01:18]} Qc5+ {[%clk
00:01:36]} {[%emt 00:00:28]} 32. Bd4 {[%clk 00:02:35]} {[%emt 00:00:09]} Bxd4+
{[%clk 00:01:51]} {[%emt 00:00:17]} 0-1

[Event "NJSK 2018 Jeugd A"]
[Site "Assen, Netherlands"]
[Date "2018.04.30"]
[Round "2.7"]
[White "Reichardt, Robin"]
[Black "Van Hoorn, Geert"]
[Result "1-0"]
[TimeControl "40/90m+30m+30sec/move"]
[WhiteElo "1936"]
[BlackElo "2008"]

1. d4 {[%clk 01:30:57]} {[%emt 00:00:02]} Nf6 {[%clk 01:30:56]} {[%emt
00:00:05]} 2. c4 {[%clk 01:31:21]} {[%emt 00:00:06]} c5 {[%clk 01:31:23]}
{[%emt 00:00:03]} 3. d5 {[%clk 01:31:43]} {[%emt 00:00:07]} b5 {[%clk
01:31:49]} {[%emt 00:00:05]} 4. cxb5 {[%clk 01:32:05]} {[%emt 00:00:08]} a6
{[%clk 01:32:15]} {[%emt 00:00:04]} 5. bxa6 {[%clk 01:32:23]} {[%emt 00:00:12]}
Bxa6 {[%clk 01:32:39]} {[%emt 00:00:06]} 6. Nc3 {[%clk 01:32:45]} {[%emt
00:00:08]} g6 {[%clk 01:32:54]} {[%emt 00:00:14]} 7. e4 {[%clk 01:32:52]}
{[%emt 00:00:23]} Bxf1 {[%clk 01:33:20]} {[%emt 00:00:05]} 8. Kxf1 {[%clk
01:33:19]} {[%emt 00:00:03]} d6 {[%clk 01:33:43]} {[%emt 00:00:07]} 9. Nf3
{[%clk 01:33:30]} {[%emt 00:00:18]} Bg7 {[%clk 01:33:56]} {[%emt 00:00:18]} 10.
g3 {[%clk 01:33:51]} {[%emt 00:00:09]} O-O {[%clk 01:34:21]} {[%emt 00:00:05]}
11. Kg2 {[%clk 01:34:16]} {[%emt 00:00:05]} Nbd7 {[%clk 01:34:48]} {[%emt
00:00:03]} 12. a4 {[%clk 01:34:25]} {[%emt 00:00:20]} Ra6 {[%clk 01:35:06]}
{[%emt 00:00:13]} 13. Qc2 {[%clk 01:33:47]} {[%emt 00:01:08]} Qa8 {[%clk
01:34:24]} {[%emt 00:01:12]} 14. Ra3 {[%clk 01:32:10]} {[%emt 00:02:07]} c4
{[%clk 01:32:27]} {[%emt 00:02:27]} 15. Nb5 {[%clk 01:26:16]} {[%emt 00:06:24]}
Rc8 {[%clk 01:32:35]} {[%emt 00:00:22]} 16. Nfd4 {[%clk 01:22:16]} {[%emt
00:04:30]} Nc5 {[%clk 01:31:22]} {[%emt 00:01:43]} 17. Nc6 {[%clk 01:21:03]}
{[%emt 00:01:43]} Rcxc6 {[%clk 01:30:42]} {[%emt 00:01:10]} 18. dxc6 {[%clk
01:20:54]} {[%emt 00:00:39]} Qxc6 {[%clk 01:30:22]} {[%emt 00:00:50]} 19. Qxc4
{[%clk 01:06:58]} {[%emt 00:14:26]} Nfxe4 {[%clk 01:29:17]} {[%emt 00:01:35]}
20. f3 {[%clk 01:05:04]} {[%emt 00:02:24]} Nf6 {[%clk 01:26:02]} {[%emt
00:03:45]} 21. b4 {[%clk 01:01:12]} {[%emt 00:04:22]} e5 {[%clk 01:14:40]}
{[%emt 00:11:51]} 22. bxc5 {[%clk 00:54:02]} {[%emt 00:07:41]} d5 {[%clk
01:12:33]} {[%emt 00:02:37]} 23. Qb4 {[%clk 00:43:36]} {[%emt 00:10:55]} Nd7
{[%clk 01:11:12]} {[%emt 00:01:51]} 24. Nd6 {[%clk 00:37:44]} {[%emt 00:06:22]}
Bf8 {[%clk 01:01:37]} {[%emt 00:10:05]} 25. Qb7 {[%clk 00:29:48]} {[%emt
00:08:26]} Qxc5 {[%clk 01:01:30]} {[%emt 00:00:37]} 26. Qxa6 {[%clk 00:28:27]}
{[%emt 00:01:51]} Qc2+ {[%clk 01:01:38]} {[%emt 00:00:22]} 27. Kh3 {[%clk
00:27:57]} {[%emt 00:01:00]} Nf6 {[%clk 00:58:47]} {[%emt 00:03:22]} 28. Qc8
{[%clk 00:22:48]} {[%emt 00:05:38]} Qe2 {[%clk 00:56:52]} {[%emt 00:02:25]} 29.
Bh6 {[%clk 00:20:58]} {[%emt 00:02:20]} 1-0